[Event "*** Titled Tuesday Blitz"]
[Site "Chess.com"]
[Date "2021.04.06"]
[Round "3"]
[White "Kretov_Evgenij"]
[Black "kuli4ik"]
[Result "0-1"]
[WhiteElo "2615"]
[BlackElo "2871"]
[TimeControl "180+1"]
[EndTime "10:29:26 PDT"]
[Termination "kuli4ik won by resignation"]

1. c4 {[%clk 0:03:00.1]} 1... e5 {[%clk 0:02:56.6]} 2. Nc3 {[%clk 0:03:00.2]}
2... Nc6 {[%clk 0:02:56.9]} 3. g3 {[%clk 0:03:00.5]} 3... Bc5 {[%clk 0:02:56.3]}
4. Bg2 {[%clk 0:03:00.3]} 4... a6 {[%clk 0:02:56.7]} 5. e3 {[%clk 0:02:59.7]}
5... d6 {[%clk 0:02:57.2]} 6. h3 {[%clk 0:02:58.8]} 6... Ba7 {[%clk 0:02:56.8]}
7. Nge2 {[%clk 0:02:58.7]} 7... h5 {[%clk 0:02:56]} 8. d4 {[%clk 0:02:56.4]}
8... Nge7 {[%clk 0:02:40.5]} 9. b3 {[%clk 0:02:44.8]} 9... Nf5 {[%clk
0:02:34.2]} 10. dxe5 {[%clk 0:02:30.8]} 10... dxe5 {[%clk 0:02:28.1]} 11. Qxd8+
{[%clk 0:02:30.6]} 11... Nxd8 {[%clk 0:02:28.3]} 12. Nd5 {[%clk 0:02:26.8]}
12... Ne6 {[%clk 0:02:25.7]} 13. Bb2 {[%clk 0:02:14.3]} 13... f6 {[%clk
0:02:25.3]} 14. O-O-O {[%clk 0:02:10.7]} 14... Bd7 {[%clk 0:01:59.1]} 15. Kb1
{[%clk 0:01:55.9]} 15... O-O-O {[%clk 0:01:40.1]} 16. Be4 {[%clk 0:01:51.8]}
16... Nd6 {[%clk 0:01:26.5]} 17. Bc2 {[%clk 0:01:43.9]} 17... Kb8 {[%clk
0:01:16.7]} 18. h4 {[%clk 0:01:40.9]} 18... Nc5 {[%clk 0:01:08.2]} 19. Nec3
{[%clk 0:01:33.6]} 19... Bf5 {[%clk 0:01:02.7]} 20. Ne7 {[%clk 0:01:28.5]} 20...
Bxc2+ {[%clk 0:01:00.2]} 21. Kxc2 {[%clk 0:01:28.6]} 21... Rde8 {[%clk
0:00:59.8]} 22. Ned5 {[%clk 0:01:22.8]} 22... Nce4 {[%clk 0:00:58]} 23. Nxe4
{[%clk 0:01:20.6]} 23... Nxe4 {[%clk 0:00:58.9]} 24. Rhf1 {[%clk 0:01:19.5]}
24... Rd8 {[%clk 0:00:53.1]} 25. Nc3 {[%clk 0:01:15.3]} 25... Nxc3 {[%clk
0:00:50.8]} 26. Bxc3 {[%clk 0:01:15.2]} 26... Kc8 {[%clk 0:00:51.3]} 27. e4
{[%clk 0:01:02.9]} 27... Rxd1 {[%clk 0:00:50.1]} 28. Kxd1 {[%clk 0:01:02.8]}
28... Rd8+ {[%clk 0:00:46.6]} 29. Ke2 {[%clk 0:01:02.9]} 29... Bd4 {[%clk
0:00:47.1]} 30. Bd2 {[%clk 0:01:03]} 30... Kd7 {[%clk 0:00:46.2]} 31. f3 {[%clk
0:01:02.4]} 31... Ke6 {[%clk 0:00:46.4]} 32. g4 {[%clk 0:01:02.2]} 32... Rh8
{[%clk 0:00:44.9]} 33. Rh1 {[%clk 0:00:57.9]} 33... g6 {[%clk 0:00:43]} 34. Bc1
{[%clk 0:00:56.7]} 34... c6 {[%clk 0:00:43]} 35. Bd2 {[%clk 0:00:56.9]} 35... b5
{[%clk 0:00:43.3]} 36. cxb5 {[%clk 0:00:55.5]} 36... axb5 {[%clk 0:00:41.6]} 37.
a4 {[%clk 0:00:55.6]} 37... Ra8 {[%clk 0:00:37.9]} 38. a5 {[%clk 0:00:53.9]}
38... c5 {[%clk 0:00:37.7]} 39. b4 {[%clk 0:00:45.4]} 39... cxb4 {[%clk
0:00:30.6]} 40. Bxb4 {[%clk 0:00:45]} 40... Rc8 {[%clk 0:00:30.9]} 41. Kd3
{[%clk 0:00:44.1]} 41... Rc4 {[%clk 0:00:30]} 42. Rb1 {[%clk 0:00:42.9]} 42...
Kd7 {[%clk 0:00:27.9]} 43. gxh5 {[%clk 0:00:36.8]} 43... gxh5 {[%clk 0:00:27.5]}
44. Bd2 {[%clk 0:00:32.4]} 44... Kc6 {[%clk 0:00:23.6]} 45. Rg1 {[%clk
0:00:32.4]} 45... Ra4 {[%clk 0:00:22]} 46. Rg6 {[%clk 0:00:32.1]} 46... b4
{[%clk 0:00:21.2]} 47. Rxf6+ {[%clk 0:00:29.9]} 47... Kb5 {[%clk 0:00:21.5]} 48.
a6 {[%clk 0:00:30.2]} 48... b3 {[%clk 0:00:20.5]} 49. Rf8 {[%clk 0:00:15.9]}
49... b2 {[%clk 0:00:18.4]} 50. Kc2 {[%clk 0:00:15.2]} 50... Ra1 {[%clk
0:00:17.3]} 51. Rb8+ {[%clk 0:00:15.2]} 51... Kxa6 {[%clk 0:00:17.4]} 52. f4
{[%clk 0:00:13.2]} 52... exf4 {[%clk 0:00:16.7]} 53. Bxf4 {[%clk 0:00:13.5]}
53... Rf1 {[%clk 0:00:14.9]} 54. Bg5 {[%clk 0:00:13.1]} 54... Re1 {[%clk
0:00:14.5]} 55. Kd3 {[%clk 0:00:11.9]} 55... Be5 {[%clk 0:00:14.1]} 56. Kc2
{[%clk 0:00:10.5]} 56... Bxb8 {[%clk 0:00:13.5]} 0-1

[Event "*** Titled Tuesday Blitz"]
[Site "Chess.com"]
[Date "2021.04.06"]
[Round "3"]
[White "VitaRasik"]
[Black "kubal123"]
[Result "0-1"]
[WhiteElo "2593"]
[BlackElo "2225"]
[TimeControl "180+1"]
[EndTime "10:29:28 PDT"]
[Termination "kubal123 won on time"]

1. e4 {[%clk 0:03:00.9]} 1... e6 {[%clk 0:02:57.6]} 2. Bb5 {[%clk 0:02:59.4]}
2... a6 {[%clk 0:02:52]} 3. Ba4 {[%clk 0:02:58.3]} 3... b5 {[%clk 0:02:52]} 4.
Bb3 {[%clk 0:02:58.5]} 4... Bb7 {[%clk 0:02:52.5]} 5. d3 {[%clk 0:02:58.4]} 5...
c5 {[%clk 0:02:51.9]} 6. c3 {[%clk 0:02:53.9]} 6... Nc6 {[%clk 0:02:51.6]} 7.
Nf3 {[%clk 0:02:53.1]} 7... d6 {[%clk 0:02:50.6]} 8. O-O {[%clk 0:02:52.6]} 8...
Nf6 {[%clk 0:02:51]} 9. Re1 {[%clk 0:02:50]} 9... Be7 {[%clk 0:02:50.8]} 10. d4
{[%clk 0:02:49.8]} 10... O-O {[%clk 0:02:24.3]} 11. Nbd2 {[%clk 0:02:43.5]}
11... e5 {[%clk 0:02:23.4]} 12. d5 {[%clk 0:02:38.8]} 12... Nb8 {[%clk 0:02:18]}
13. Bc2 {[%clk 0:02:31.2]} 13... Nbd7 {[%clk 0:02:17.6]} 14. b3 {[%clk
0:02:31.1]} 14... Nb6 {[%clk 0:02:11.1]} 15. Nf1 {[%clk 0:02:29.6]} 15... Bc8
{[%clk 0:02:10.3]} 16. h3 {[%clk 0:02:28.4]} 16... Bd7 {[%clk 0:02:09.3]} 17.
Ng3 {[%clk 0:02:28]} 17... Qc7 {[%clk 0:02:06.1]} 18. Be3 {[%clk 0:02:23.1]}
18... c4 {[%clk 0:01:56.2]} 19. Qd2 {[%clk 0:02:07.5]} 19... Rfc8 {[%clk
0:01:51.1]} 20. Ne2 {[%clk 0:02:06.3]} 20... a5 {[%clk 0:01:35.2]} 21. Reb1
{[%clk 0:01:40.6]} 21... Rcb8 {[%clk 0:01:24.3]} 22. Qd1 {[%clk 0:01:18.7]}
22... Be8 {[%clk 0:01:20.6]} 23. Nd2 {[%clk 0:01:18]} 23... Nfd7 {[%clk
0:01:07.9]} 24. bxc4 {[%clk 0:01:16.9]} 24... Nxc4 {[%clk 0:01:03.7]} 25. Nxc4
{[%clk 0:01:16.2]} 25... bxc4 {[%clk 0:00:58.2]} 26. f3 {[%clk 0:01:02.4]} 26...
Nc5 {[%clk 0:00:57.9]} 27. Rxb8 {[%clk 0:00:59.5]} 27... Rxb8 {[%clk 0:00:57.4]}
28. Rb1 {[%clk 0:00:59.7]} 28... Rxb1 {[%clk 0:00:47.4]} 29. Qxb1 {[%clk
0:00:59.6]} 29... Qb7 {[%clk 0:00:44.6]} 30. Bxc5 {[%clk 0:00:44.1]} 30... Qxb1+
{[%clk 0:00:42.7]} 31. Bxb1 {[%clk 0:00:44.2]} 31... dxc5 {[%clk 0:00:43.6]} 32.
Bc2 {[%clk 0:00:44.4]} 32... a4 {[%clk 0:00:38.5]} 33. g3 {[%clk 0:00:36.3]}
33... Bd8 {[%clk 0:00:34.6]} 34. Kf2 {[%clk 0:00:35.3]} 34... Kf8 {[%clk
0:00:33.3]} 35. Ke3 {[%clk 0:00:32.1]} 35... a3 {[%clk 0:00:32.4]} 36. h4 {[%clk
0:00:28.8]} 36... Ke7 {[%clk 0:00:29.9]} 37. Ng1 {[%clk 0:00:25.9]} 37... Kd6
{[%clk 0:00:28.6]} 38. Nh3 {[%clk 0:00:25.3]} 38... h6 {[%clk 0:00:26.9]} 39.
Nf2 {[%clk 0:00:23.6]} 39... Ba5 {[%clk 0:00:26.1]} 40. Kd2 {[%clk 0:00:23.1]}
40... Bd7 {[%clk 0:00:24.7]} 41. f4 {[%clk 0:00:16.9]} 41... exf4 {[%clk
0:00:19.5]} 42. gxf4 {[%clk 0:00:16.6]} 42... f6 {[%clk 0:00:20.1]} 43. Bd1
{[%clk 0:00:12.3]} 43... g5 {[%clk 0:00:20]} 44. fxg5 {[%clk 0:00:09.5]} 44...
fxg5 {[%clk 0:00:20.2]} 45. hxg5 {[%clk 0:00:09.7]} 45... hxg5 {[%clk
0:00:21.1]} 46. Bg4 {[%clk 0:00:09.7]} 46... Ba4 {[%clk 0:00:20.3]} 47. Bf5
{[%clk 0:00:08.5]} 47... Bb3 {[%clk 0:00:19.6]} 48. Ng4 {[%clk 0:00:05.2]} 48...
Bxa2 {[%clk 0:00:18.9]} 49. Be6 {[%clk 0:00:02.9]} 49... Bb3 {[%clk 0:00:18.4]}
50. e5+ {[%clk 0:00:03.2]} 50... Ke7 {[%clk 0:00:17.5]} 51. Bf5 {[%clk
0:00:01.7]} 51... a2 {[%clk 0:00:17.5]} 52. d6+ {[%clk 0:00:02]} 52... Kf8
{[%clk 0:00:16.3]} 53. e6 {[%clk 0:00:02.2]} 53... a1=Q {[%clk 0:00:14]} 54. e7+
{[%clk 0:00:02.3]} 54... Kf7 {[%clk 0:00:12.4]} 0-1

[Event "*** Titled Tuesday Blitz"]
[Site "Chess.com"]
[Date "2021.04.06"]
[Round "3"]
[White "McCarthyStone"]
[Black "serhanberat_ozdemir"]
[Result "0-1"]
[WhiteElo "2401"]
[BlackElo "2630"]
[TimeControl "180+1"]
[EndTime "10:29:31 PDT"]
[Termination "serhanberat_ozdemir won on time"]

1. Nf3 {[%clk 0:02:54.7]} 1... Nf6 {[%clk 0:02:59.7]} 2. c4 {[%clk 0:02:52.3]}
2... g6 {[%clk 0:03:00.1]} 3. d4 {[%clk 0:02:51.7]} 3... Bg7 {[%clk 0:03:00.7]}
4. Nc3 {[%clk 0:02:52.6]} 4... O-O {[%clk 0:03:01]} 5. e4 {[%clk 0:02:51.8]}
5... d6 {[%clk 0:03:01.6]} 6. Be2 {[%clk 0:02:52.3]} 6... Bg4 {[%clk 0:03:02]}
7. Be3 {[%clk 0:02:50.4]} 7... Nfd7 {[%clk 0:03:02.2]} 8. O-O {[%clk 0:02:50.1]}
8... c5 {[%clk 0:03:00.2]} 9. Ne1 {[%clk 0:02:40.6]} 9... Bxe2 {[%clk
0:02:58.9]} 10. Nxe2 {[%clk 0:02:41.5]} 10... Nc6 {[%clk 0:02:41.6]} 11. f3
{[%clk 0:02:25.8]} 11... cxd4 {[%clk 0:02:39.9]} 12. Nxd4 {[%clk 0:02:24.4]}
12... Qb6 {[%clk 0:02:38.4]} 13. Nec2 {[%clk 0:02:17.5]} 13... Nxd4 {[%clk
0:02:24.8]} 14. Bxd4 {[%clk 0:02:16.6]} 14... Bxd4+ {[%clk 0:02:24.5]} 15. Qxd4
{[%clk 0:02:17.5]} 15... Rac8 {[%clk 0:02:17.3]} 16. Qxb6 {[%clk 0:02:11.4]}
16... Nxb6 {[%clk 0:02:18.2]} 17. b3 {[%clk 0:02:10.4]} 17... Nd7 {[%clk
0:02:00.1]} 18. Rfd1 {[%clk 0:02:05]} 18... b5 {[%clk 0:01:58.7]} 19. Ne3 {[%clk
0:02:04.2]} 19... bxc4 {[%clk 0:01:56.7]} 20. Nxc4 {[%clk 0:02:05.1]} 20... Rc5
{[%clk 0:01:44.4]} 21. Rd2 {[%clk 0:01:57.5]} 21... Rfc8 {[%clk 0:01:44.7]} 22.
Rad1 {[%clk 0:01:57.5]} 22... Nb6 {[%clk 0:01:39.1]} 23. Nxb6 {[%clk 0:01:49.8]}
23... axb6 {[%clk 0:01:40]} 24. Kf2 {[%clk 0:01:49.9]} 24... b5 {[%clk
0:01:34.9]} 25. Ke3 {[%clk 0:01:50]} 25... b4 {[%clk 0:01:24.9]} 26. g4 {[%clk
0:01:47.8]} 26... f5 {[%clk 0:01:12.3]} 27. exf5 {[%clk 0:01:41]} 27... gxf5
{[%clk 0:01:13.2]} 28. Rd4 {[%clk 0:01:41.4]} 28... Ra8 {[%clk 0:01:08.3]} 29.
R1d2 {[%clk 0:01:39.1]} 29... Rca5 {[%clk 0:00:53.7]} 30. Rxb4 {[%clk
0:01:19.1]} 30... Rxa2 {[%clk 0:00:54.2]} 31. Rxa2 {[%clk 0:01:09]} 31... Rxa2
{[%clk 0:00:55.1]} 32. h4 {[%clk 0:01:01.2]} 32... Kf7 {[%clk 0:00:49.3]} 33.
Rf4 {[%clk 0:00:51.9]} 33... e6 {[%clk 0:00:42.1]} 34. Rb4 {[%clk 0:00:48.4]}
34... Kf6 {[%clk 0:00:36.8]} 35. g5+ {[%clk 0:00:31]} 35... Ke5 {[%clk
0:00:22.3]} 36. Rb5+ {[%clk 0:00:18.7]} 36... d5 {[%clk 0:00:22.3]} 37. f4+
{[%clk 0:00:19.1]} 37... Kd6 {[%clk 0:00:22.8]} 38. Rb7 {[%clk 0:00:18.3]} 38...
Rb2 {[%clk 0:00:23.1]} 39. h5 {[%clk 0:00:16.6]} 39... Rh2 {[%clk 0:00:18.3]}
40. Rxh7 {[%clk 0:00:13.7]} 40... Rh3+ {[%clk 0:00:18.8]} 41. Kd2 {[%clk
0:00:12]} 41... Rxb3 {[%clk 0:00:19.2]} 42. h6 {[%clk 0:00:12.3]} 42... e5
{[%clk 0:00:14.3]} 43. fxe5+ {[%clk 0:00:08.9]} 43... Kxe5 {[%clk 0:00:15.2]}
44. Re7+ {[%clk 0:00:08.9]} 44... Kd6 {[%clk 0:00:15.1]} 45. Re2 {[%clk
0:00:07.1]} 45... Rg3 {[%clk 0:00:14.7]} 46. Rh2 {[%clk 0:00:05.2]} 46... Ra3
{[%clk 0:00:06.4]} 47. h7 {[%clk 0:00:05.3]} 47... Ra2+ {[%clk 0:00:06.5]} 48.
Ke3 {[%clk 0:00:05.4]} 48... Rxh2 {[%clk 0:00:07.4]} 49. g6 {[%clk 0:00:06.1]}
49... Rh3+ {[%clk 0:00:04.7]} 50. Kf4 {[%clk 0:00:05.6]} 50... Ke6 {[%clk
0:00:04.2]} 51. g7 {[%clk 0:00:05.1]} 51... Rh4+ {[%clk 0:00:03.8]} 52. Kg5
{[%clk 0:00:05.5]} 52... Rg4+ {[%clk 0:00:04.1]} 53. Kh6 {[%clk 0:00:04]} 53...
Kf6 {[%clk 0:00:04.8]} 0-1

[Event "*** Titled Tuesday Blitz"]
[Site "Chess.com"]
[Date "2021.04.06"]
[Round "3"]
[White "grzechu96"]
[Black "korkmaz16"]
[Result "1-0"]
[WhiteElo "2654"]
[BlackElo "2428"]
[TimeControl "180+1"]
[EndTime "10:29:32 PDT"]
[Termination "grzechu96 won by checkmate"]

1. e4 {[%clk 0:03:00.9]} 1... e6 {[%clk 0:02:57]} 2. d4 {[%clk 0:03:00.7]} 2...
d5 {[%clk 0:02:57.2]} 3. Bd3 {[%clk 0:02:59.1]} 3... dxe4 {[%clk 0:02:55.2]} 4.
Bxe4 {[%clk 0:03:00]} 4... Nf6 {[%clk 0:02:55.5]} 5. Bf3 {[%clk 0:03:00.5]} 5...
c5 {[%clk 0:02:55.9]} 6. Ne2 {[%clk 0:03:00.7]} 6... Nc6 {[%clk 0:02:53.5]} 7.
Be3 {[%clk 0:02:58.9]} 7... cxd4 {[%clk 0:02:52.9]} 8. Nxd4 {[%clk 0:02:59.8]}
8... Nxd4 {[%clk 0:02:52.5]} 9. Qxd4 {[%clk 0:03:00.7]} 9... Qxd4 {[%clk
0:02:32.9]} 10. Bxd4 {[%clk 0:03:01.6]} 10... Be7 {[%clk 0:02:33.5]} 11. Nc3
{[%clk 0:03:01.1]} 11... a6 {[%clk 0:02:33.8]} 12. Na4 {[%clk 0:02:57.5]} 12...
Bd7 {[%clk 0:02:31.9]} 13. Nb6 {[%clk 0:02:57.3]} 13... Rd8 {[%clk 0:02:31.6]}
14. Bxb7 {[%clk 0:02:48.1]} 14... Rb8 {[%clk 0:02:30.5]} 15. Nxd7 {[%clk
0:02:16.6]} 15... Rxb7 {[%clk 0:02:22.8]} 16. Nxf6+ {[%clk 0:02:16.6]} 16...
Bxf6 {[%clk 0:01:54]} 17. Bxf6 {[%clk 0:02:03.4]} 17... gxf6 {[%clk 0:01:54.9]}
18. O-O-O {[%clk 0:02:03.9]} 18... Ke7 {[%clk 0:01:53.9]} 19. Rd4 {[%clk
0:02:02.5]} 19... e5 {[%clk 0:01:48.7]} 20. Rd3 {[%clk 0:01:46.4]} 20... h5
{[%clk 0:01:44.8]} 21. Rhd1 {[%clk 0:01:44.5]} 21... h4 {[%clk 0:01:44.2]} 22.
Rd6 {[%clk 0:01:32.5]} 22... Rg8 {[%clk 0:01:37]} 23. g3 {[%clk 0:01:32.5]}
23... hxg3 {[%clk 0:01:37.3]} 24. hxg3 {[%clk 0:01:33.3]} 24... Ra8 {[%clk
0:01:25.5]} 25. Rc6 {[%clk 0:01:31.3]} 25... a5 {[%clk 0:01:22.6]} 26. a4 {[%clk
0:01:24.5]} 26... Raa7 {[%clk 0:00:51.7]} 27. Rdd6 {[%clk 0:01:20.5]} 27... f5
{[%clk 0:00:51.7]} 28. Rd5 {[%clk 0:01:19.2]} 28... f6 {[%clk 0:00:49.1]} 29.
Rdd6 {[%clk 0:01:19.5]} 29... Rb4 {[%clk 0:00:32.3]} 30. b3 {[%clk 0:01:02.1]}
30... f4 {[%clk 0:00:30.9]} 31. Rxf6 {[%clk 0:01:00.6]} 31... fxg3 {[%clk
0:00:31]} 32. fxg3 {[%clk 0:01:00.9]} 32... e4 {[%clk 0:00:24.9]} 33. Rce6+
{[%clk 0:00:59.7]} 33... Kd7 {[%clk 0:00:25]} 34. Kd2 {[%clk 0:00:53.3]} 34...
Rc7 {[%clk 0:00:23.6]} 35. Rf7+ {[%clk 0:00:49.2]} 35... Kxe6 {[%clk 0:00:23.5]}
36. Rxc7 {[%clk 0:00:49.4]} 36... Kd5 {[%clk 0:00:20.3]} 37. Ke3 {[%clk
0:00:48.3]} 37... Rb8 {[%clk 0:00:19.3]} 38. Rd7+ {[%clk 0:00:46.9]} 38... Ke6
{[%clk 0:00:19.2]} 39. Rd4 {[%clk 0:00:46.4]} 39... Rg8 {[%clk 0:00:17.5]} 40.
Rxe4+ {[%clk 0:00:46.7]} 40... Kd5 {[%clk 0:00:18.1]} 41. g4 {[%clk 0:00:45.1]}
41... Rh8 {[%clk 0:00:17.4]} 42. Rf4 {[%clk 0:00:45.2]} 42... Rh3+ {[%clk
0:00:16.8]} 43. Rf3 {[%clk 0:00:45.4]} 43... Rh2 {[%clk 0:00:17]} 44. Kd3 {[%clk
0:00:44.7]} 44... Rg2 {[%clk 0:00:15.6]} 45. Rf5+ {[%clk 0:00:44.5]} 45... Kc6
{[%clk 0:00:16.1]} 46. Rxa5 {[%clk 0:00:41.9]} 46... Rxg4 {[%clk 0:00:16.1]} 47.
Kc3 {[%clk 0:00:40.2]} 47... Kb6 {[%clk 0:00:16.2]} 48. Rb5+ {[%clk 0:00:40.1]}
48... Kc6 {[%clk 0:00:16.4]} 49. Kb2 {[%clk 0:00:39.8]} 49... Rh4 {[%clk
0:00:16.1]} 50. c4 {[%clk 0:00:38.8]} 50... Rg4 {[%clk 0:00:15.5]} 51. Kc3
{[%clk 0:00:39]} 51... Rh4 {[%clk 0:00:15.6]} 52. Kb4 {[%clk 0:00:39.4]} 52...
Rg4 {[%clk 0:00:15.8]} 53. a5 {[%clk 0:00:35.6]} 53... Rh4 {[%clk 0:00:14.9]}
54. Rb6+ {[%clk 0:00:35.9]} 54... Kc7 {[%clk 0:00:14.7]} 55. Kb5 {[%clk
0:00:36.1]} 55... Rh5+ {[%clk 0:00:14.1]} 56. c5 {[%clk 0:00:36.3]} 56... Rh1
{[%clk 0:00:14.2]} 57. b4 {[%clk 0:00:36.2]} 57... Ra1 {[%clk 0:00:14.1]} 58. a6
{[%clk 0:00:36.4]} 58... Ra2 {[%clk 0:00:13.8]} 59. Rb7+ {[%clk 0:00:36.5]}
59... Kc8 {[%clk 0:00:14.4]} 60. Kb6 {[%clk 0:00:36.1]} 60... Ra4 {[%clk
0:00:13.4]} 61. b5 {[%clk 0:00:36]} 61... Ra3 {[%clk 0:00:11.8]} 62. c6 {[%clk
0:00:35.1]} 62... Rd3 {[%clk 0:00:08.7]} 63. a7 {[%clk 0:00:35.1]} 63... Ra3
{[%clk 0:00:08.4]} 64. Rb8# {[%clk 0:00:35.3]} 1-0

[Event "*** Titled Tuesday Blitz"]
[Site "Chess.com"]
[Date "2021.04.06"]
[Round "3"]
[White "Forantes"]
[Black "iamnotIM"]
[Result "0-1"]
[WhiteElo "2352"]
[BlackElo "2549"]
[TimeControl "180+1"]
[EndTime "10:29:35 PDT"]
[Termination "iamnotIM won by resignation"]

1. Nf3 {[%clk 0:03:00.9]} 1... Nf6 {[%clk 0:02:59.3]} 2. g3 {[%clk 0:03:00.1]}
2... c5 {[%clk 0:02:53.7]} 3. Bg2 {[%clk 0:02:58.8]} 3... Nc6 {[%clk 0:02:53.9]}
4. d4 {[%clk 0:02:59.1]} 4... cxd4 {[%clk 0:02:53.7]} 5. Nxd4 {[%clk 0:02:59.1]}
5... g6 {[%clk 0:02:54.2]} 6. O-O {[%clk 0:02:58.8]} 6... Bg7 {[%clk 0:02:54.2]}
7. c4 {[%clk 0:02:58.8]} 7... O-O {[%clk 0:02:54.3]} 8. Nc3 {[%clk 0:02:57.3]}
8... d6 {[%clk 0:02:54.4]} 9. Nb3 {[%clk 0:02:54.9]} 9... a5 {[%clk 0:02:49]}
10. Bg5 {[%clk 0:02:37.3]} 10... a4 {[%clk 0:02:47.8]} 11. Nd4 {[%clk
0:02:34.4]} 11... a3 {[%clk 0:02:37.5]} 12. Nxc6 {[%clk 0:02:09.8]} 12... bxc6
{[%clk 0:02:37.3]} 13. b3 {[%clk 0:02:10.4]} 13... Qa5 {[%clk 0:02:22.7]} 14.
Qd2 {[%clk 0:01:46.3]} 14... h6 {[%clk 0:01:42]} 15. Bxf6 {[%clk 0:00:48.4]}
15... Bxf6 {[%clk 0:01:40.4]} 16. Rac1 {[%clk 0:00:48.9]} 16... Bd7 {[%clk
0:01:22.8]} 17. Rfd1 {[%clk 0:00:36.9]} 17... Bg5 {[%clk 0:00:49.3]} 18. f4
{[%clk 0:00:26.1]} 18... Bf6 {[%clk 0:00:48.4]} 19. Ne4 {[%clk 0:00:24.8]} 19...
Qa7+ {[%clk 0:00:40.7]} 20. c5 {[%clk 0:00:24.9]} 20... Bg7 {[%clk 0:00:37.5]}
21. e3 {[%clk 0:00:05.9]} 21... d5 {[%clk 0:00:37.2]} 22. Nf2 {[%clk 0:00:05.8]}
22... Bc8 {[%clk 0:00:31.4]} 23. e4 {[%clk 0:00:05.8]} 23... e6 {[%clk
0:00:29.2]} 24. e5 {[%clk 0:00:04.6]} 24... Ba6 {[%clk 0:00:28.5]} 25. Nd3
{[%clk 0:00:05]} 25... Rfb8 {[%clk 0:00:28.4]} 26. Qc3 {[%clk 0:00:02.6]} 26...
Bxd3 {[%clk 0:00:28.4]} 27. Rxd3 {[%clk 0:00:02.6]} 27... Bf8 {[%clk 0:00:28.9]}
28. Rd2 {[%clk 0:00:02.2]} 28... Qa5 {[%clk 0:00:28]} 29. Qxa5 {[%clk
0:00:02.3]} 29... Rxa5 {[%clk 0:00:28.9]} 30. Rdc2 {[%clk 0:00:03.2]} 30... Rb4
{[%clk 0:00:27]} 31. Bf1 {[%clk 0:00:03.9]} 31... h5 {[%clk 0:00:25.2]} 32. Kf2
{[%clk 0:00:04.4]} 32... h4 {[%clk 0:00:25]} 33. Ke3 {[%clk 0:00:04.3]} 33...
Be7 {[%clk 0:00:24.2]} 34. Bd3 {[%clk 0:00:04.4]} 34... Kg7 {[%clk 0:00:22.8]}
35. Kf3 {[%clk 0:00:04.1]} 35... hxg3 {[%clk 0:00:22.8]} 36. hxg3 {[%clk
0:00:04.2]} 36... Ra8 {[%clk 0:00:22.5]} 37. Ke3 {[%clk 0:00:04.5]} 37... Rh8
{[%clk 0:00:22.6]} 38. Kf3 {[%clk 0:00:04.8]} 38... f6 {[%clk 0:00:18.6]} 39.
exf6+ {[%clk 0:00:04.7]} 39... Kxf6 {[%clk 0:00:17.7]} 40. Re1 {[%clk
0:00:05.2]} 40... Re8 {[%clk 0:00:16.9]} 41. Rce2 {[%clk 0:00:05.6]} 41... Bf8
{[%clk 0:00:17.1]} 42. g4 {[%clk 0:00:04.8]} 42... Bxc5 {[%clk 0:00:16.9]} 43.
Bxg6 {[%clk 0:00:04.2]} 43... Kxg6 {[%clk 0:00:16.2]} 44. Rxe6+ {[%clk
0:00:05.1]} 44... Rxe6 {[%clk 0:00:16.5]} 45. Rxe6+ {[%clk 0:00:06]} 45... Kf7
{[%clk 0:00:17]} 46. Rxc6 {[%clk 0:00:06.9]} 46... Be7 {[%clk 0:00:16.6]} 47. f5
{[%clk 0:00:07.4]} 47... Rd4 {[%clk 0:00:15.4]} 48. Rc7 {[%clk 0:00:07.5]} 48...
Rd2 {[%clk 0:00:14.2]} 49. g5 {[%clk 0:00:07.5]} 49... Kf8 {[%clk 0:00:11.9]}
50. f6 {[%clk 0:00:07.3]} 50... Bxf6 {[%clk 0:00:11.1]} 51. gxf6 {[%clk
0:00:07.3]} 51... Rxa2 {[%clk 0:00:12]} 52. Ra7 {[%clk 0:00:07.8]} 52... Ra1
{[%clk 0:00:12.1]} 53. Ke3 {[%clk 0:00:07.7]} 53... a2 {[%clk 0:00:12.5]} 54.
Kd2 {[%clk 0:00:04.5]} 54... Rh1 {[%clk 0:00:11.4]} 55. Rxa2 {[%clk 0:00:04.8]}
55... Rh2+ {[%clk 0:00:11.6]} 56. Kd3 {[%clk 0:00:05.5]} 56... Rxa2 {[%clk
0:00:12.2]} 57. Kd4 {[%clk 0:00:06.4]} 57... Rd2+ {[%clk 0:00:12.3]} 58. Kc5
{[%clk 0:00:06]} 0-1